[Event "Portuguese-ch U14-20 2022"]
[Site "Fatima"]
[Date "2022.04.11"]
[Round "2.15"]
[White "Vidal Torres, Ricardo"]
[Black "Pina, Tiago"]
[Result "1-0"]
[ECO "A85"]
[WhiteElo "2332"]
[BlackElo "1938"]
[Annotator "RC"]
[PlyCount "59"]
[EventDate "2022.04.10"]
[EventType "swiss"]
[EventCountry "POR"]
[SourceTitle "playchess.com"]
[Source "ChessBase"]
[SourceQuality "1"]
[TimeControl "5400+30"]

1. d4 {[%emt 0:00:02]} f5 {[%emt 0:00:08]} 2. c4 {[%emt 0:00:39]} Nf6 {[%emt 0:00:08]} 3. Nc3 {[%emt 0:00:06]} e6 {[%emt 0:00:06]} 4. g3 {[%emt 0:00:20]} Be7 {[%emt 0:00:13]} 5. Bg2 {[%emt 0:00:59]} O-O {[%emt 0:00:10]} 6. Nh3 {[%emt 0:02:58]} d6 {[%emt 0:00:25]} 7. Nf4 {[%emt 0:05:41]} Qe8 {[%emt 0:01:51]} 8. O-O {[%emt 0:07:20]} c6 {[%emt 0:08:01]} 9. Nd3 {[%emt 0:08:40]} Nbd7 {[%emt 0:01:53]} 10. Bf4 {[%emt 0:05:08]} Qf7 {[%emt 0:08:16]} 11. e4 {[%emt 0:09:16]} Nxe4 {[%emt 0:03:12]} 12. Nxe4 {[%emt 0:00:43]} fxe4 {[%emt 0:00:02]} 13. Bxe4 {[%emt 0:00:13]} d5 {[%emt 0:03:54]} 14. Bg2 {[%emt 0:04:51]} Bf6 {[%emt 0:13:06]} 15. Ne5 {[%emt 0:03:48]} Bxe5 {[%emt 0:08:06]} 16. Bxe5 {[%emt 0:00:44]} Nxe5 {[%emt 0:00:30]} 17. dxe5 {[%emt 0:00:02]} b6 {[%emt 0:09:27]} 18. b4 {[%emt 0:12:02]} Qc7 {[%emt 0:12:47]} 19. cxd5 {[%emt 0:05:01]} Qxe5 {[%emt 0:01:38]} 20. dxc6 {[%emt 0:01:11]} Ba6 {[%emt 0:01:09]} 21. Re1 {[%emt 0:00:40]} Qb2 {[%emt 0:02:33]} 22. Qb3 {[%emt 0:04:05]} Qxf2+ {[%emt 0:04:38]} 23. Kh1 {[%emt 0:00:13]} Rad8 {[%emt 0:02:10]} 24. Qxe6+ {[%emt 0:07:05]} Kh8 {[%emt 0:00:13]} 25. Qe3 {[%emt 0:00:05]} Qb2 {[%emt 0:03:48]} 26. Qe7 {[%emt 0:03:30]} Bc4 {[%emt 0:03:56]} 27. Rad1 {[%emt 0:02:59]} Rc8 {[%emt 0:02:48]} 28. c7 {[%emt 0:00:27]} Rf2 {[%emt 0:01:03]} 29. Rd8+ {[%emt 0:00:21]} Bg8 {[%emt 0:00:26]} 30. Rxc8 {[%emt 0:00:14]} 1-0

[Event "Portuguese-ch U14-20 2022"]
[Site "Fatima"]
[Date "2022.04.11"]
[Round "2.15"]
[White "Oliveira, Maria Elisa Ramos Ma"]
[Black "Pina, Tiago"]
[Result "*"]
[ECO "A80"]
[WhiteElo "1316"]
[BlackElo "1938"]
[Annotator "RC"]
[PlyCount "46"]
[EventDate "2022.04.10"]
[EventType "swiss"]
[EventCountry "POR"]
[SourceTitle "playchess.com"]
[Source "ChessBase"]
[SourceQuality "1"]
[TimeControl "5400+30"]

1. d4 {[%emt 0:00:02]} f5 {[%emt 0:00:08]} 2. c4 {[%emt 0:00:39]} Nf6 {[%emt 0:00:08]} 3. Nc3 {[%emt 0:00:06]} e6 {[%emt 0:00:06]} 4. g3 {[%emt 0:00:20]} Be7 {[%emt 0:00:13]} 5. Bg2 {[%emt 0:00:59]} O-O {[%emt 0:00:10]} 6. Nh3 {[%emt 0:02:58]} d6 {[%emt 0:00:25]} 7. Nf4 {[%emt 0:05:41]} Qe8 {[%emt 0:01:51]} 8. O-O {[%emt 0:07:20]} c6 {[%emt 0:08:01]} 9. Nd3 {[%emt 0:08:40]} Nbd7 {[%emt 0:01:53]} 10. Bf4 {[%emt 0:05:08]} Qf7 {[%emt 0:08:16]} 11. e4 {[%emt 0:09:16]} Nxe4 {[%emt 0:03:12]} 12. Nxe4 {[%emt 0:00:43]} fxe4 {[%emt 0:00:02]} 13. Bxe4 {[%emt 0:00:13]} d5 {[%emt 0:03:54]} 14. Bg2 {[%emt 0:04:51]} Bf6 {[%emt 0:13:06]} 15. Ne5 {[%emt 0:03:48]} Bxe5 {[%emt 0:08:06]} 16. Bxe5 {[%emt 0:00:44]} Nxe5 {[%emt 0:00:30]} 17. dxe5 {[%emt 0:00:02]} b6 {[%emt 0:09:27]} 18. b4 {[%emt 0:12:02]} Qc7 {[%emt 0:12:47]} 19. cxd5 {[%emt 0:05:01]} Qxe5 {[%emt 0:01:38]} 20. dxc6 {[%emt 0:01:11]} Ba6 {[%emt 0:01:09]} 21. Re1 {[%emt 0:00:40]} Qb2 {[%emt 0:02:33]} 22. Qb3 {[%emt 0:04:05]} Qxf2+ {[%emt 0:04:38]} 23. Kh1 {[%emt 0:00:13]} Rad8 {[%emt 0:02:10]} *

[Event "Portuguese-ch U14-20 2022"]
[Site "Fatima"]
[Date "2022.04.11"]
[Round "2.16"]
[White "Soares, Luis Francisco Almei"]
[Black "Bastiao, Tomas"]
[Result "0-1"]
[ECO "A80"]
[WhiteElo "2000"]
[BlackElo "1664"]
[Annotator "RC"]
[PlyCount "46"]
[EventDate "2022.04.10"]
[EventType "swiss"]
[EventCountry "POR"]
[SourceTitle "playchess.com"]
[Source "ChessBase"]
[SourceQuality "1"]
[TimeControl "5400+30"]

1. d4 f5 2. e3 Nf6 3. Bd3 g6 4. Nc3 Bg7 5. Nf3 d6 6. Qe2 O-O 7. Bd2 c6 8. O-O Na6 9. Bxa6 bxa6 10. Qc4+ e6 11. Qxc6 Rb8 12. b3 Bb7 13. Qc4 Qe7 14. Qe2 h6 15. Nh4 Qf7 16. g3 g5 17. Ng2 g4 18. Ne1 Nh7 19. f3 Ng5 20. Kg2 Qh5 21. e4 fxe4 22. fxe4 Qh3+ 23. Kg1 Bxd4+ 0-1

[Event "Portuguese-ch U14-20 2022"]
[Site "Fatima"]
[Date "2022.04.10"]
[Round "2.17"]
[White "Vidal Torres, Ricardo"]
[Black "Rodrigues, Jose Pedro Da Costa"]
[Result "*"]
[WhiteElo "2332"]
[BlackElo "1533"]
[Annotator "RC"]
[PlyCount "50"]
[EventDate "2022.04.10"]
[EventType "swiss"]
[EventCountry "POR"]
[SourceTitle "playchess.com"]
[Source "ChessBase"]
[SourceQuality "1"]
[TimeControl "5400+30"]

1. e4 {[%emt 0:00:12]} c6 {[%emt 0:00:15]} 2. d4 {[%emt 0:00:02]} d5 {[%emt 0:00:02]} 3. e5 {[%emt 0:00:17]} Bf5 {[%emt 0:00:07]} 4. Nf3 {[%emt 0:00:13]} e6 {[%emt 0:00:33]} 5. Bd3 {[%emt 0:00:23]} Bxd3 {[%emt 0:00:14]} 6. Qxd3 {[%emt 0:00:09]} Ne7 {[%emt 0:02:25]} 7. a3 {[%emt 0:01:44]} Nd7 {[%emt 0:02:31]} 8. O-O {[%emt 0:02:37]} c5 {[%emt 0:03:42]} 9. c3 {[%emt 0:00:30]} Nc6 {[%emt 0:01:31]} 10. b4 {[%emt 0:02:03]} cxd4 {[%emt 0:03:04]} 11. cxd4 {[%emt 0:00:07]} Be7 {[%emt 0:02:31]} 12. Bb2 {[%emt 0:03:12]} Rc8 {[%emt 0:03:55]} 13. Nc3 {[%emt 0:01:13]} Nb6 {[%emt 0:00:54]} 14. Nd2 {[%emt 0:02:34]} O-O {[%emt 0:04:53]} 15. Ne2 {[%emt 0:05:42]} Qd7 {[%emt 0:14:29]} 16. Rac1 {[%emt 0:03:35]} f6 {[%emt 0:04:40]} 17. f4 {[%emt 0:25:29]} fxe5 {[%emt 0:03:26]} 18. dxe5 {[%emt 0:02:01]} Bd8 {[%emt 0:03:10]} 19. Nb3 {[%emt 0:13:19]} Nc4 {[%emt 0:01:43]} 20. Rxc4 {[%emt 0:04:01]} Nxe5 {[%emt 0:03:08]} 21. Bxe5 {[%emt 0:00:36]} Rxc4 {[%emt 0:00:45]} 22. Nc5 {[%emt 0:01:56]} Bb6 {[%emt 0:00:53]} 23. Bd4 {[%emt 0:00:51]} Qf7 {[%emt 0:03:55]} 24. Nc3 {[%emt 0:04:07]} Qf5 {[%emt 0:08:18]} 25. Qe3 {[%emt 0:09:21]} Re8 {[%emt 0:04:07]} *

[Event "Portuguese-ch U14-20 2022"]
[Site "Fatima"]
[Date "2022.04.11"]
[Round "2.19"]
[White "Asseiceiro, Lucas Teixeira"]
[Black "Bernardo, Beatriz Nunes"]
[Result "1-0"]
[ECO "C88"]
[WhiteElo "1580"]
[BlackElo "1144"]
[Annotator "NA RC"]
[PlyCount "53"]
[EventDate "2022.04.10"]
[EventType "swiss"]
[EventCountry "POR"]
[SourceTitle "playchess.com"]
[Source "ChessBase"]
[SourceQuality "1"]
[TimeControl "5400+30"]

1. e4 e5 2. Nf3 Nc6 3. Bb5 a6 4. Ba4 Nf6 5. O-O Be7 6. Re1 b5 7. Bb3 O-O 8. c3 Bb7 9. d3 Bc5 10. d4 exd4 11. cxd4 Bb4 12. Nc3 Na5 13. Bc2 Nc4 14. a3 Ba5 15. Qd3 Bxc3 16. bxc3 g6 17. Bg5 d6 18. Nd2 Nb2 19. Qf3 Kg7 20. Qh3 Bc8 21. Qh4 Re8 22. e5 dxe5 23. dxe5 Re6 24. exf6+ Rxf6 25. Qh6+ Kg8 26. Bxf6 Qxf6 27. Re8# 1-0

[Event "Portuguese-ch U14-20 2022"]
[Site "Fatima"]
[Date "2022.04.11"]
[Round "2.20"]
[White "Gomes, Guilherme Rodrigues"]
[Black "Monteiro, Simao Costa"]
[Result "1/2-1/2"]
[ECO "B01"]
[WhiteElo "1899"]
[BlackElo "1346"]
[Annotator "NA RC"]
[PlyCount "34"]
[EventDate "2022.04.10"]
[EventType "swiss"]
[EventCountry "POR"]
[SourceTitle "playchess.com"]
[Source "ChessBase"]
[SourceQuality "1"]
[TimeControl "5400+30"]

{[%evp 10,27,-25,-28,-20,-177,-158,-198,-94,-117,66,-308,-316,-396,-263,-228,10,37,29994,29995]} 1. e4 {[%emt 0:00:02]} d5 {[%emt 0:00:42]} 2. Bd3 {[%emt 0:01:40]} e5 {[%emt 0:01:30]} 3. Nf3 {[%emt 0:02:17]} dxe4 {[%emt 0:04:27]} 4. Bxe4 {[%emt 0:00:39]} Nf6 {[%emt 0:03:11]} 5. Nc3 {[%emt 0:03:47]} Bb4 {[%emt 0:01:58]} (5... Nxe4 $15 {deserves consideration.} 6. Nxe4 Nc6) 6. Qe2 {[%emt 0:05:13]} O-O {[%emt 0:02:09]} 7. Nxe5 $2 {[%emt 0:02:34]} (7. O-O $11) 7... Re8 {[%emt 0:00:23]} 8. Nxf7 {[%emt 0:03:18]} Qd4 {[%emt 0:09:58]} ({Worse is} 8... Qe7 9. Ng5 Bxc3 10. Qc4+ Kh8 11. dxc3 $11 (11. Nf7+ Kg8 $11)) (8... Kxf7 $19 {and Black stays clearly on top.} 9. Qc4+ Re6 10. Qxb4 Nc6) 9. Ng5 {[%emt 0:03:38] [#]} Bf5 $2 {[%emt 0:15:37] [#]} 10. d3 $2 {[%emt 0:07:05]} (10. Bxf5 $1 $16 {and life is bright.} Rxe2+ 11. Nxe2) 10... Bxc3+ {[%emt 0:06:01]} 11. Kf1 {[%emt 0:02:00]} Bxe4 {[%emt 0:03:09]} 12. dxe4 {[%emt 0:01:48] [#]} Bxb2 $2 {[%emt 0:03:25]} ({Black should play} 12... Ba5 $1 $19 13. c3 Qd7) 13. Bxb2 {[%emt 0:02:46]} Qxb2 $4 {[%emt 0:00:08]} (13... Qc5 $11 14. e5 Nc6) 14. Qc4+ {[%emt 0:01:45]} Kh8 {[%emt 0:03:47]} 15. Nf7+ {[%emt 0:00:25]} Kg8 {[%emt 0:00:03]} 16. Ng5+ {[%emt 0:00:15]} Kh8 {[%emt 0:00:49]} 17. Nf7+ {[%emt 0:00:02]} Kg8 {[%emt 0:00:01]} 1/2-1/2

[Event "Portuguese-ch U14-20 2022"]
[Site "Fatima"]
[Date "2022.04.11"]
[Round "2.21"]
[White "Tejo, Joao Jorge De Medeir"]
[Black "Ferreira, Tiago Filipe Quiteri"]
[Result "1-0"]
[ECO "C53"]
[WhiteElo "1844"]
[BlackElo "1699"]
[Annotator "NA RC"]
[PlyCount "51"]
[EventDate "2022.04.10"]
[EventType "swiss"]
[EventCountry "POR"]
[SourceTitle "playchess.com"]
[Source "ChessBase"]
[SourceQuality "1"]
[TimeControl "5400+30"]

1. e4 e5 2. Nf3 Nc6 3. Bc4 Bc5 4. c3 Qf6 5. b4 Bb6 6. O-O a6 7. Re1 d6 8. h3 Qg6 9. d3 h6 10. Nh4 Qf6 11. Nf3 Qg6 12. h4 Bg4 13. Nbd2 Nge7 14. Qb3 Be6 15. a4 Bxc4 16. Qxc4 O-O-O 17. a5 Ba7 18. b5 axb5 19. Qxb5 d5 20. Qb3 dxe4 21. dxe4 Rd3 22. Ba3 Rxd2 23. Nxd2 Qf6 24. Nf3 Qf4 25. Bxe7 Nxe7 26. Rab1 1-0

[Event "Portuguese-ch U14-20 2022"]
[Site "Fatima"]
[Date "2022.04.11"]
[Round "2.22"]
[White "Sarabando, Rodrigo Andias"]
[Black "Marques Serra, David"]
[Result "1-0"]
[ECO "D81"]
[WhiteElo "1897"]
[BlackElo "1734"]
[Annotator "NA RC"]
[PlyCount "113"]
[EventDate "2022.04.10"]
[EventType "swiss"]
[EventCountry "POR"]
[SourceTitle "playchess.com"]
[Source "ChessBase"]
[SourceQuality "1"]
[TimeControl "5400+30"]

1. d4 {[%emt 0:00:01]} Nf6 {[%emt 0:00:05]} 2. c4 {[%emt 0:00:05]} g6 {[%emt 0:00:09]} 3. Nc3 {[%emt 0:00:06]} d5 {[%emt 0:00:06]} 4. Qb3 {[%emt 0:00:03]} c6 {[%emt 0:07:23]} 5. cxd5 {[%emt 0:01:29]} cxd5 {[%emt 0:00:59]} 6. Bg5 {[%emt 0:02:36]} e6 {[%emt 0:09:39]} 7. Nf3 {[%emt 0:00:49]} Bg7 {[%emt 0:01:30]} 8. e3 {[%emt 0:00:20]} O-O {[%emt 0:00:59]} 9. h3 {[%emt 0:01:08]} Nc6 {[%emt 0:02:52]} 10. Bd3 {[%emt 0:01:32]} b6 {[%emt 0:07:15]} 11. Rc1 {[%emt 0:01:23]} Bb7 {[%emt 0:03:32]} 12. O-O {[%emt 0:01:25]} Na5 {[%emt 0:05:55]} 13. Qc2 {[%emt 0:01:07]} Rc8 {[%emt 0:03:44]} 14. Rfd1 {[%emt 0:00:17]} Nc6 {[%emt 0:04:47]} 15. a3 {[%emt 0:01:33]} a6 {[%emt 0:13:52]} 16. Qe2 {[%emt 0:01:09]} b5 {[%emt 0:01:19]} 17. b4 Qd6 18. Bf4 {[%emt 0:02:25]} Qe7 {[%emt 0:05:04]} 19. Ne5 {[%emt 0:03:57]} Nxe5 {[%emt 0:01:49]} 20. Bxe5 Nd7 {[%emt 0:00:30]} 21. Bxg7 {[%emt 0:00:16]} Kxg7 {[%emt 0:00:02]} 22. Qb2 {[%emt 0:00:00]} Nb6 {[%emt 0:02:47]} 23. a4 bxa4 {[%emt 0:02:43]} 24. Ra1 {[%emt 0:01:23]} Qd7 {[%emt 0:01:32]} 25. Qa3 {[%emt 0:01:52]} Nc4 {[%emt 0:12:51]} 26. Bxc4 {[%emt 0:00:17]} Rxc4 {[%emt 0:00:26]} 27. Nxa4 {[%emt 0:00:20]} Qb5 28. Rab1 Ra8 {[%emt 0:01:47]} 29. Nc5 {[%emt 0:00:37]} Bc8 {[%emt 0:01:00]} 30. Qa5 {[%emt 0:00:20]} Rb8 {[%emt 0:01:01]} 31. Qxb5 Rxb5 {[%emt 0:01:39]} 32. Nd3 {[%emt 0:05:41]} Rb6 {[%emt 0:00:40]} 33. Rb2 {[%emt 0:01:19]} Bd7 34. Rdb1 {[%emt 0:01:08]} f6 {[%emt 0:01:30]} 35. Nc5 {[%emt 0:01:36]} Bb5 {[%emt 0:02:19]} 36. Rd1 {[%emt 0:00:40]} Kf7 {[%emt 0:01:46]} 37. f4 {[%emt 0:03:30]} Bc6 {[%emt 0:01:16]} 38. Ra1 {[%emt 0:01:15]} Bb5 {[%emt 0:01:21]} 39. Kf2 {[%emt 0:00:28]} h5 40. g4 {[%emt 0:00:23]} hxg4 {[%emt 0:01:28]} 41. hxg4 {[%emt 0:00:29]} Kg7 42. g5 f5 {[%emt 0:01:56]} 43. Rh1 {[%emt 0:01:23]} Be8 44. Kf3 {[%emt 0:02:00]} Rd6 {[%emt 0:02:10]} 45. Rbh2 {[%emt 0:00:10]} Bf7 {[%emt 0:00:34]} 46. Nd3 {[%emt 0:00:33]} Rc8 {[%emt 0:00:34]} 47. Ne5 {[%emt 0:00:22]} Bg8 {[%emt 0:00:30]} 48. Rh6 {[%emt 0:00:07]} Rc7 {[%emt 0:00:28]} 49. Rxg6+ Kf8 50. Rh8 {[%emt 0:03:12]} Rg7 {[%emt 0:00:10]} 51. Rf6+ {[%emt 0:00:08]} Ke7 {[%emt 0:01:02]} 52. Rh1 {[%emt 0:00:35]} Bf7 {[%emt 0:00:50]} 53. Rc1 {[%emt 0:00:27]} Bh5+ {[%emt 0:00:27]} 54. Kf2 Be8 55. Rc7+ {[%emt 0:01:14]} Bd7 {[%emt 0:00:08]} 56. Ra7 {[%emt 0:00:08]} Rh7 {[%emt 0:01:31]} 57. Ng6+ {[%emt 0:00:09]} 1-0

[Event "Portuguese-ch U14-20 2022"]
[Site "Fatima"]
[Date "2022.04.11"]
[Round "2.23"]
[White "Guia, Artur Solovyov Eloy"]
[Black "De Medeiros, Sara Soares"]
[Result "1-0"]
[ECO "A05"]
[WhiteElo "1932"]
[BlackElo "1828"]
[Annotator "RC"]
[PlyCount "119"]
[EventDate "2022.04.10"]
[EventType "swiss"]
[EventCountry "POR"]
[SourceTitle "playchess.com"]
[Source "ChessBase"]
[SourceQuality "1"]
[TimeControl "5400+30"]

1. Nf3 {[%emt 0:00:16]} Nf6 {[%emt 0:00:28]} 2. b3 {[%emt 0:00:36]} d5 {[%emt 0:02:20]} 3. e3 {[%emt 0:00:35]} c5 {[%emt 0:01:44]} 4. Bb2 {[%emt 0:00:30]} Nc6 {[%emt 0:00:37]} 5. Bb5 {[%emt 0:00:39]} Bg4 {[%emt 0:07:00]} 6. Bxc6+ {[%emt 0:02:15]} bxc6 {[%emt 0:00:02]} 7. d3 {[%emt 0:00:36]} e6 {[%emt 0:02:56]} 8. Nbd2 {[%emt 0:01:06]} Be7 {[%emt 0:08:26]} 9. O-O {[%emt 0:00:29]} O-O {[%emt 0:00:13]} 10. Qe1 {[%emt 0:00:28]} Bh5 {[%emt 0:02:26]} 11. Ne5 {[%emt 0:01:43]} Qc7 {[%emt 0:01:48]} 12. f4 {[%emt 0:00:49]} Nd7 {[%emt 0:04:19]} 13. Nxd7 {[%emt 0:07:27]} Qxd7 {[%emt 0:00:01]} 14. Qg3 {[%emt 0:00:17]} f6 {[%emt 0:01:03]} 15. Qh3 {[%emt 0:01:33]} Bf7 {[%emt 0:02:54]} 16. Rf3 {[%emt 0:03:39]} Rad8 {[%emt 0:07:40]} 17. Rg3 {[%emt 0:12:10]} Bg6 {[%emt 0:05:31]} 18. Nf3 {[%emt 0:08:35]} Bf5 {[%emt 0:04:32]} 19. Qh4 {[%emt 0:00:39]} Qc7 {[%emt 0:02:47]} 20. Re1 {[%emt 0:07:13]} e5 {[%emt 0:06:46]} 21. Qh5 {[%emt 0:14:06]} Bg6 {[%emt 0:06:31]} 22. Qh3 {[%emt 0:00:19]} exf4 {[%emt 0:02:06]} 23. exf4 {[%emt 0:00:02]} Bd6 {[%emt 0:04:46]} 24. f5 {[%emt 0:01:48]} Bxg3 {[%emt 0:04:31]} 25. fxg6 {[%emt 0:00:02]} Bxh2+ {[%emt 0:02:59]} 26. Nxh2 {[%emt 0:00:02]} hxg6 {[%emt 0:00:14]} 27. Qe6+ {[%emt 0:00:01]} Qf7 {[%emt 0:02:39]} 28. Qxc6 {[%emt 0:03:43]} Rc8 {[%emt 0:02:18]} 29. Qd6 {[%emt 0:01:57]} Rfd8 {[%emt 0:00:41]} 30. Qe7 {[%emt 0:03:10]} Re8 {[%emt 0:01:39]} 31. Qxf7+ {[%emt 0:00:05]} Kxf7 {[%emt 0:00:04]} 32. Kf2 {[%emt 0:00:19]} Rxe1 {[%emt 0:08:49]} 33. Kxe1 {[%emt 0:00:02]} a5 {[%emt 0:01:21]} 34. Nf1 {[%emt 0:02:27]} a4 {[%emt 0:00:56]} 35. Ne3 {[%emt 0:00:24]} Ke6 {[%emt 0:00:04]} 36. Ba3 {[%emt 0:01:20]} axb3 {[%emt 0:01:15]} 37. axb3 {[%emt 0:00:46]} Ke5 {[%emt 0:00:15]} 38. Kf2 {[%emt 0:01:53]} Ke6 {[%emt 0:02:30]} 39. Kf3 {[%emt 0:02:25]} Ke5 {[%emt 0:00:24]} 40. Ng4+ {[%emt 0:01:30]} Ke6 {[%emt 0:00:00]} 41. Nf2 {[%emt 0:01:30]} Ke5 {[%emt 0:01:36]} 42. Ke3 {[%emt 0:01:36]} Ke6 {[%emt 0:00:45]} 43. Nh3 {[%emt 0:00:16]} g5 {[%emt 0:00:01]} 44. Ng1 {[%emt 0:01:50]} Kf5 {[%emt 0:00:46]} 45. Ne2 {[%emt 0:01:53]} Re8+ {[%emt 0:00:51]} 46. Kf2 {[%emt 0:00:18]} Rc8 {[%emt 0:00:02]} 47. Nc3 {[%emt 0:00:33]} Ke6 {[%emt 0:00:11]} 48. Na4 {[%emt 0:00:42]} c4 {[%emt 0:00:13]} 49. dxc4 {[%emt 0:01:32]} dxc4 {[%emt 0:00:02]} 50. Nb6 {[%emt 0:00:01]} Rc6 {[%emt 0:01:28]} 51. Nxc4 {[%emt 0:00:08]} f5 {[%emt 0:00:13]} 52. Bc1 {[%emt 0:01:12]} f4 {[%emt 0:00:32]} 53. Ba3 {[%emt 0:04:15]} g6 {[%emt 0:01:15]} 54. Kf3 {[%emt 0:00:12]} Kf5 {[%emt 0:00:19]} 55. Nd6+ {[%emt 0:00:07]} Ke6 {[%emt 0:00:50]} 56. c4 {[%emt 0:00:10]} Ra6 {[%emt 0:00:21]} 57. Nb5 {[%emt 0:00:01]} Kf5 {[%emt 0:00:18]} 58. g4+ {[%emt 0:01:36]} Ke5 {[%emt 0:01:08]} 59. Bb2+ {[%emt 0:00:14]} Ke6 {[%emt 0:00:13]} 60. Nc7+ {[%emt 0:00:01]} 1-0

[Event "Portuguese-ch U14-20 2022"]
[Site "Fatima"]
[Date "2022.04.11"]
[Round "2.24"]
[White "Afonso, Joao Pedro"]
[Black "Goncalves, Ruan Lucas Alves"]
[Result "0-1"]
[ECO "C97"]
[WhiteElo "1501"]
[BlackElo "1963"]
[Annotator "RC"]
[PlyCount "70"]
[EventDate "2022.04.10"]
[EventType "swiss"]
[EventCountry "POR"]
[SourceTitle "playchess.com"]
[Source "ChessBase"]
[SourceQuality "1"]
[TimeControl "5400+30"]

1. e4 {[%emt 0:01:57]} e5 {[%emt 0:00:02]} 2. Nf3 {[%emt 0:00:04]} Nc6 {[%emt 0:00:08]} 3. Bb5 {[%emt 0:00:05]} a6 {[%emt 0:00:07]} 4. Ba4 {[%emt 0:00:02]} Nf6 {[%emt 0:00:08]} 5. O-O {[%emt 0:00:04]} Be7 {[%emt 0:00:05]} 6. Re1 {[%emt 0:00:06]} b5 {[%emt 0:00:01]} 7. Bb3 {[%emt 0:00:06]} d6 {[%emt 0:00:04]} 8. c3 {[%emt 0:00:04]} O-O {[%emt 0:00:09]} 9. h3 {[%emt 0:00:03]} Na5 {[%emt 0:00:10]} 10. Bc2 {[%emt 0:00:04]} c5 {[%emt 0:00:13]} 11. d4 {[%emt 0:00:00]} Qc7 {[%emt 0:00:49]} 12. Nbd2 {[%emt 0:05:08]} Bd7 {[%emt 0:08:19]} 13. d5 {[%emt 0:20:20]} Nb7 14. b3 {[%emt 0:01:44]} c4 {[%emt 0:08:02]} 15. bxc4 {[%emt 0:00:30]} Na5 {[%emt 0:02:09]} 16. Bb3 {[%emt 0:12:03]} Nxc4 {[%emt 0:05:13]} 17. Bxc4 {[%emt 0:01:04]} bxc4 {[%emt 0:00:06]} 18. Qe2 {[%emt 0:00:22]} Rfc8 {[%emt 0:02:02]} 19. Nf1 {[%emt 0:01:07]} Qa5 {[%emt 0:00:40]} 20. Qb2 {[%emt 0:10:31]} Rab8 {[%emt 0:00:51]} 21. Qa3 {[%emt 0:00:06]} Rc5 {[%emt 0:19:14]} 22. Qxa5 {[%emt 0:21:09]} Rxa5 {[%emt 0:00:06]} 23. Bg5 {[%emt 0:07:43]} h6 {[%emt 0:00:30]} 24. Bxf6 {[%emt 0:00:30]} Bxf6 {[%emt 0:10:22]} 25. Ne3 {[%emt 0:00:00]} Ra4 {[%emt 0:04:33]} 26. Nd2 {[%emt 0:00:31]} Bb5 {[%emt 0:00:49]} 27. Reb1 {[%emt 0:00:11]} Rc8 {[%emt 0:00:58]} 28. Nf5 {[%emt 0:01:16]} Rd8 {[%emt 0:00:42]} 29. Rb2 {[%emt 0:01:37]} Bg5 {[%emt 0:00:30]} 30. Nf3 {[%emt 0:00:16]} g6 {[%emt 0:00:23]} 31. Ng3 {[%emt 0:01:40]} Be7 {[%emt 0:01:31]} 32. Nd2 {[%emt 0:07:54]} Rd7 {[%emt 0:00:30]} 33. Ndf1 {[%emt 0:00:28]} Bd8 {[%emt 0:00:32]} 34. Nh5 {[%emt 0:00:45]} Bb6 {[%emt 0:02:55]} 35. Nhg3 {[%emt 0:01:26]} Rc7 {[%emt 0:01:03]} 0-1

[Event "Portuguese-ch U14-20 2022"]
[Site "Fatima"]
[Date "2022.04.11"]
[Round "2.25"]
[White "Ribeiro, Gustavo"]
[Black "Almeida, Joao Pedro Dias"]
[Result "1-0"]
[ECO "A18"]
[WhiteElo "1860"]
[BlackElo "1508"]
[Annotator "NA RC"]
[PlyCount "61"]
[EventDate "2022.04.10"]
[EventType "swiss"]
[EventCountry "POR"]
[SourceTitle "playchess.com"]
[Source "ChessBase"]
[SourceQuality "1"]
[TimeControl "5400+30"]

{[%evp 8,60,14,32767,32767,32767,33,32767,32767,24,61,-27,-14,-17,-19,-8,8,-14,-15,-18,-21,-20,-21,-8,-17,-22,-20,-33,-34,-21,0,-19,-20,-18,-8,0,0,32767,0,0,-8,32767,-71,-96,32767,32767,75,85,91,89,86,89,160,128,762]} 1. c4 {[%emt 0:00:02]} Nf6 {[%emt 0:00:25]} 2. Nc3 {[%emt 0:00:05]} e6 {[%emt 0:00:13]} 3. e4 {[%emt 0:00:36]} d5 {[%emt 0:01:09]} 4. e5 {[%emt 0:02:33]} d4 {[%emt 0:06:00]} 5. exf6 {[%emt 0:01:26]} dxc3 {[%emt 0:00:24]} 6. bxc3 {[%emt 0:00:10]} Qxf6 {[%emt 0:00:47]} 7. d4 {[%emt 0:00:55]} c5 {[%emt 0:05:59]} 8. Nf3 {[%emt 0:00:31]} cxd4 {[%emt 0:02:35]} 9. cxd4 {[%emt 0:00:31]} (9. Bg5 $142 Qf5 10. cxd4 (10. Qxd4 Nc6 $15)) 9... Bb4+ {[%emt 0:00:25]} 10. Bd2 {[%emt 0:00:07]} Bxd2+ {[%emt 0:01:04]} 11. Qxd2 {[%emt 0:00:06]} O-O 12. Be2 {[%emt 0:00:26]} b6 {[%emt 0:06:47]} 13. O-O {[%emt 0:00:41]} Bb7 {[%emt 0:01:33]} 14. Ne5 {[%emt 0:03:57]} Rd8 {[%emt 0:02:29]} 15. Rfd1 {[%emt 0:02:47]} Nc6 {[%emt 0:02:22]} 16. Nxc6 {[%emt 0:02:03]} Bxc6 {[%emt 0:00:07]} 17. Qe3 {[%emt 0:00:19]} Rac8 {[%emt 0:08:29]} 18. Rac1 {[%emt 0:03:41]} Rc7 {[%emt 0:08:59]} 19. Rd3 {[%emt 0:02:33]} Rcd7 {[%emt 0:04:13]} 20. Rcd1 $1 b5 {[%emt 0:01:57]} 21. d5 {[%emt 0:03:06]} bxc4 {[%emt 0:04:34]} ({Much less strong is} 21... exd5 22. cxd5 Ba8 23. d6 $14) 22. dxc6 {[%emt 0:22:28]} Rxd3 $11 {[%emt 0:00:56]} 23. Bxd3 {[%emt 0:01:20]} Rxd3 {[%emt 0:00:21]} 24. Rb1 {[%emt 0:00:23]} Qd8 {[%emt 0:01:14]} 25. Qc1 {[%emt 0:01:15]} c3 {[%emt 0:02:04]} 26. g3 {[%emt 0:00:38]} h6 {[%emt 0:03:43]} (26... f6 $1 $11) 27. Qc2 {[%emt 0:00:21]} Rd6 {[%emt 0:27:11]} 28. Qxc3 {[%emt 0:00:14]} Qc7 {[%emt 0:00:41]} 29. Rc1 {[%emt 0:00:33]} f6 {[%emt 0:01:18]} (29... Rd8 $142) 30. Qc5 {[%emt 0:02:43]} ({Better is} 30. h4 $18) 30... Kf7 $2 (30... Rd8 $16 31. Qc4 Qd6) 31. Qxd6 1-0